fUSD/lending_fUSD_20250530
["ID","MTS","AMOUNT","RATE_DAILY","PERIOD"]
[363197033,1748619171546,-826.36,0.00026849,2]
[363197034,1748619171556,-1544.23,0.00026849,2]
[363197035,1748619171566,-1175.33,0.00026849,2]
[363197036,1748619171575,-3295.64,0.00026849,2]
[363197037,1748619171588,-1761.11,0.00026849,2]
[363197038,1748619171598,-3573.53,0.00026849,2]
[363197039,1748619171608,-738.85,0.00026849,2]
[363197040,1748619171621,-1034.84,0.00026849,2]
[363197041,1748619171631,-1151.03,0.00026849,2]
[363197042,1748619171642,-9251.83,0.00026849,2]
[363197043,1748619171652,-660.71,0.00026849,2]
[363197044,1748619171663,-420.0,0.00026849,2]
[363197045,1748619171672,-490.63,0.00026849,2]
[363197046,1748619171682,-772.03,0.00026849,2]
[363197047,1748619171693,-720.83,0.00026849,2]
[363197048,1748619171703,-1360.32,0.00026849,2]
[363197049,1748619171713,-723.88,0.00026849,2]
[363197050,1748619171723,-567.24,0.00026849,2]
[363197051,1748619171734,-2486.32,0.00026849,2]
[363197052,1748619171745,-4470.51,0.00026849,2]
[363197053,1748619171755,-1446.13,0.00026849,2]
[363197054,1748619171765,-2304.2,0.00026849,2]
[363197055,1748619171776,-1389.12,0.00026849,2]
[363197056,1748619171786,-1054.71,0.00026849,2]
[363197057,1748619171796,-990.01,0.00026849,2]
[363197058,1748619171807,-1680.37,0.00026849,2]
[363197059,1748619171817,-521.76,0.00026849,2]
[363197060,1748619171833,-4095.54,0.00026849,2]
[363197061,1748619171843,-1486.66,0.00026849,2]
[363197062,1748619171852,-1336.51,0.00026849,2]
[363197063,1748619171863,-1487.37,0.00026849,2]
[363197064,1748619171873,-2771.35,0.00026849,2]
[363197065,1748619171883,-4189.49,0.00026849,2]
[363197066,1748619171892,-629.45,0.00026849,2]
[363197067,1748619171903,-2997.14,0.00026849,2]
[363197068,1748619171913,-1026.77,0.00026849,2]
[363197069,1748619171923,-614.16,0.00026849,2]
[363197070,1748619171932,-1125.7,0.00026849,2]
[363197071,1748619171942,-7561.37,0.00026849,2]
[363197072,1748619171952,-1258.89,0.00026849,2]
[363197073,1748619171962,-420.0,0.00026849,2]
[363197074,1748619171972,-1075.29,0.00026849,2]
[363197075,1748619171981,-760.57,0.00026849,2]
[363197076,1748619171991,-3180.63,0.00026849,2]
[363197077,1748619172002,-1927.78,0.00026849,2]
[363197078,1748619172011,-1656.75,0.00026849,2]
[363197079,1748619172021,-641.68,0.00026849,2]
[363197080,1748619172031,-420.0,0.00026849,2]
[363197081,1748619172040,-1318.91,0.00026849,2]
[363197082,1748619172050,-1139.98,0.00026849,2]
[363197083,1748619172060,-798.56,0.00026849,2]
[363197084,1748619172070,-1082.24,0.00026849,2]
[363197085,1748619172081,-718.05,0.00026849,2]
[363197086,1748619172091,-3419.97,0.00026849,2]
[363197087,1748619172100,-671.13,0.00026849,2]
[363197088,1748619172110,-1848.95,0.00026849,2]
[363197089,1748619172120,-2486.27,0.00026849,2]
[363197090,1748619172129,-1074.24,0.00026849,2]
[363197091,1748619172139,-1239.27,0.00026849,2]
[363197092,1748619172149,-420.0,0.00026849,2]
[363197093,1748619172159,-1822.33,0.00026849,2]
[363197094,1748619172169,-4083.38,0.00026849,2]
[363197095,1748619172448,-1501.86,0.00026849,2]
[363197096,1748619172471,-4025.56,0.00026849,2]
[363197097,1748619172482,-1358.16,0.00026849,2]
[363197098,1748619172492,-2713.7,0.00026849,2]
[363197099,1748619172502,-4868.11,0.00026849,2]
[363197100,1748619172511,-489.31,0.00026849,2]
[363197101,1748619172522,-742.91,0.00026849,2]
[363197102,1748619172531,-802.33,0.00026849,2]
[363197103,1748619172541,-420.0,0.00026849,2]
[363197104,1748619172551,-937.93,0.00026849,2]
[363197105,1748619172562,-2531.82,0.00026849,2]
[363197106,1748619172572,-420.0,0.00026849,2]
[363197107,1748619172583,-830.27,0.00026849,2]
[363197108,1748619172594,-703.73,0.00026849,2]
[363197109,1748619172603,-622.77,0.00026849,2]
[363197110,1748619172613,-7051.39,0.00026849,2]
[363197111,1748619172623,-1538.8,0.00026849,2]
[363197112,1748619172633,-9062.80584961,0.00026849,2]
[363197113,1748619172944,-1013.92,0.00025205,2]
[363197114,1748619172954,-9967.63415039,0.00026849,2]
[363197115,1748619172965,-1325.56,0.00026849,2]
[363197116,1748619172975,-2716.47,0.00026849,2]
[363197117,1748619172985,-702.43,0.00026849,2]
[363197118,1748619172995,-961.82,0.00026849,2]
[363197119,1748619173004,-735.86,0.00026849,2]
[363197120,1748619173014,-760.22,0.00026849,2]
[363197121,1748619173024,-2783.11,0.00026849,2]
[363197122,1748619173034,-676.42,0.00026849,2]
[363197123,1748619173044,-734.54,0.00026849,2]
[363197124,1748619173054,-1264.47,0.00026849,2]
[363197125,1748619173063,-1663.09,0.00026849,2]
[363197126,1748619173073,-450.49,0.00026849,2]
[363197127,1748619173085,-3243.96584961,0.00026849,2]
[363197128,1748619174172,-291.32611057,0.000199,2]
[363197129,1748619174182,-245.63295893,0.0002099,2]
[363197130,1748619174192,-6929.0,0.00021548,2]
[363197131,1748619174202,-420.0,0.00021917,2]
[363197132,1748619174211,-420.0,0.00021917,2]
[363197133,1748619174221,-1042.33,0.00021917,2]
[363197134,1748619174231,-420.0,0.00021917,2]
[363197135,1748619174240,-420.0,0.00021917,2]
[363197136,1748619174250,-420.0,0.00021917,2]
[363197137,1748619174260,-420.0,0.00021917,2]
[363197138,1748619174270,-420.0,0.00021917,2]
[363197139,1748619174279,-420.0,0.00021917,2]
[363197140,1748619174289,-420.0,0.00021917,2]
[363197141,1748619174299,-420.0,0.00021917,2]
[363197142,1748619174308,-420.0,0.00021917,2]
[363197143,1748619174318,-420.0,0.00021917,2]
[363197144,1748619174328,-420.0,0.00021917,2]
[363197145,1748619174339,-420.0,0.00022191,2]
[363197146,1748619174349,-158.68,0.00022191,2]
[363197147,1748619174359,-1042.33,0.00022191,2]
[363197148,1748619174369,-420.0,0.00022191,2]
[363197149,1748619174379,-249.597948,0.00022191,7]
[363197150,1748619174389,-249.597948,0.00022191,7]
[363197151,1748619174399,-546.82,0.00022191,2]
[363197152,1748619174408,-420.0,0.00022191,2]
[363197153,1748619174418,-420.0,0.00022465,2]
[363197154,1748619174427,-1042.33,0.00022465,2]
[363197155,1748619174437,-420.0,0.00022465,2]
[363197156,1748619174446,-249.597948,0.00022465,7]
[363197157,1748619174456,-249.597948,0.00022465,7]
[363197158,1748619174466,-1042.33,0.00022739,2]
[363197159,1748619174475,-420.0,0.00022739,2]
[363197160,1748619174484,-249.597948,0.00022739,7]
[363197161,1748619174494,-249.597948,0.00022739,7]
[363197162,1748619174503,-1042.33,0.00023013,2]
[363197163,1748619174512,-435.91,0.00023013,2]
[363197164,1748619174522,-249.597948,0.00023013,7]
[363197165,1748619174531,-249.597948,0.000231,7]
[363197166,1748619174596,-1042.33,0.00023287,2]
[363197167,1748619174607,-249.597948,0.00023287,7]
[363197168,1748619174617,-1042.33,0.00023561,2]
[363197169,1748619174626,-2553.4,0.00023835,2]
[363197170,1748619174636,-1042.33,0.00023835,2]
[363197171,1748619174646,-732.13,0.00024109,2]
[363197172,1748619174656,-2553.4,0.00024109,2]
[363197173,1748619174665,-1042.33,0.00024109,2]
[363197174,1748619174675,-732.13,0.00024383,2]
[363197175,1748619174685,-2553.4,0.00024383,2]
[363197176,1748619174695,-1042.33,0.00024383,2]
[363197177,1748619174704,-6929.0,0.00024548,2]
[363197178,1748619174715,-460.2,0.00024657,2]
[363197179,1748619174724,-732.13,0.00024657,2]
[363197180,1748619174734,-2553.4,0.00024657,2]
[363197181,1748619174744,-1042.33,0.00024657,2]
[363197182,1748619174754,-326.02,0.00024658,2]
[363197183,1748619174765,-1519.84,0.00024931,2]
[363197184,1748619174775,-460.2,0.00024931,2]
[363197185,1748619174784,-732.13,0.00024931,2]
[363197186,1748619174794,-2553.4,0.00024931,2]
[363197187,1748619174803,-1042.33,0.00024931,2]
[363197188,1748619174812,-1519.84,0.00025205,2]
[363197189,1748619174823,-460.2,0.00025205,2]
[363197190,1748619174836,-732.13,0.00025205,2]
[363197191,1748619174845,-2553.4,0.00025205,2]
[363197192,1748619174855,-1042.33,0.00025205,2]
[363197193,1748619174865,-1013.92,0.00025479,2]
[363197194,1748619174875,-1519.84,0.00025479,2]
[363197195,1748619174885,-460.2,0.00025479,2]
[363197196,1748619174895,-732.13,0.00025479,2]
[363197197,1748619174905,-2553.4,0.00025479,2]
[363197198,1748619174915,-1042.33,0.00025479,2]
[363197199,1748619174924,-1013.92,0.00025753,2]
[363197200,1748619174934,-1519.84,0.00025753,2]
[363197201,1748619174944,-460.2,0.00025753,2]
[363197202,1748619174954,-732.13,0.00025753,2]
[363197203,1748619174964,-2553.4,0.00025753,2]
[363197204,1748619174974,-1042.33,0.00025753,2]
[363197205,1748619174984,-2875.31,0.00026027,2]
[363197206,1748619174994,-1013.92,0.00026027,2]
[363197207,1748619175004,-1519.84,0.00026027,2]
[363197208,1748619175013,-460.2,0.00026027,2]
[363197209,1748619175023,-732.13,0.00026027,2]
[363197210,1748619175033,-626.32566609,0.00026027,2]
[363197211,1748619188169,-2186.128,0.000196,2]
[363197212,1748619188222,-2186.128,0.000196,2]
[363197213,1748619188291,-2186.128,0.000196,2]
[363197214,1748619188585,-2186.128,0.000196,2]
[363197215,1748619188616,-860.28377831,0.000196,2]
[363197216,1748619188642,-1325.84422169,0.00019633,2]
[363197217,1748619188688,-2186.128,0.00019633,2]
[363197218,1748619188733,-2186.128,0.00019633,2]
[363197219,1748619188774,-2186.128,0.00019633,2]
[363197220,1748619188833,-1720.56755657,0.00019633,2]
[363197221,1748619188857,-465.56044343,0.00019667,2]
[363197222,1748619188895,-2186.128,0.00019667,2]
[363197223,1748619188934,-200.0,0.00019616,2]
[363197224,1748619188958,-1986.128,0.00019667,2]
[363197225,1748619188999,-2186.128,0.00019667,2]
[363197226,1748619189032,-200.0,0.00019646,2]
[363197227,1748619189055,-1986.128,0.00019667,2]
[363197228,1748619189090,-794.72333483,0.00019667,2]
[363197229,1748619189116,-294.43296903,0.00019699,2]
[363197230,1748619189141,-239.00880861,0.00019699,2]
[363197231,1748619189163,-281.84987497,0.00019699,2]
[363197232,1748619189186,-204.86258263,0.00019699,2]
[363197233,1748619189210,-371.25042993,0.00019699,2]
[363197234,1748619189261,-128.74957007,0.00019699,2]
[363197235,1748619189286,-314.99999999,0.00019699,2]
[363197236,1748619189310,-500.0,0.00019699,2]
[363197237,1748619189335,-500.0,0.00019699,2]
[363197238,1748619189361,-500.0,0.00019699,2]
[363197239,1748619189387,-242.37842994,0.00019699,2]
[363197240,1748619189433,-250.0,0.00019616,2]
[363197241,1748619189458,-257.62157006,0.00019699,2]
[363197242,1748619189481,-500.0,0.00019699,2]
[363197243,1748619189506,-500.0,0.00019699,2]
[363197244,1748619189531,-500.0,0.00019699,2]
[363197245,1748619189556,-178.50642994,0.00019699,2]
[363197246,1748619189655,-250.0,0.00019646,2]
[363197247,1748619189681,-321.49357006,0.00019699,2]
[363197248,1748619189706,-500.0,0.00019699,2]
[363197249,1748619189729,-500.0,0.00019699,2]
[363197250,1748619189752,-500.0,0.00019699,2]
[363197251,1748619189776,-114.63442994,0.00019699,2]
[363197252,1748619189831,-385.36557006,0.00019699,2]
[363197253,1748619189858,-500.0,0.00019699,2]
[363197254,1748619189881,-500.0,0.00019699,2]
[363197255,1748619189903,-500.0,0.00019699,2]
[363197256,1748619189930,-300.76242994,0.00019699,2]
[363197257,1748619190000,-199.23757006,0.00019699,2]
[363197258,1748619190025,-500.0,0.00019699,2]
[363197259,1748619190049,-500.0,0.00019699,2]
[363197260,1748619190073,-500.0,0.00019699,2]
[363197261,1748619190099,-486.89042994,0.00019699,2]
[363197262,1748619190237,-13.10957006,0.00019699,2]
[363197263,1748619190261,-500.0,0.00019699,2]
[363197264,1748619190286,-500.0,0.00019699,2]
[363197265,1748619190309,-500.0,0.00019699,2]
[363197266,1748619190333,-500.0,0.00019699,2]
[363197267,1748619190359,-173.01842994,0.00019699,2]
[363197268,1748619190414,-326.98157006,0.00019699,2]
[363197269,1748619190439,-500.0,0.00019699,2]
[363197270,1748619190463,-500.0,0.00019699,2]
[363197271,1748619190487,-500.0,0.00019699,2]
[363197272,1748619190511,-359.14642994,0.00019699,2]
[363197273,1748619190610,-140.85357006,0.00019699,2]
[363197274,1748619190634,-500.0,0.00019699,2]
[363197275,1748619190657,-500.0,0.00019699,2]
[363197276,1748619190683,-500.0,0.00019699,2]
[363197277,1748619190706,-500.0,0.00019699,2]
[363197278,1748619190730,-45.27442994,0.00019699,2]
[363197279,1748619190798,-454.72557006,0.00019699,2]
[363197280,1748619190821,-500.0,0.00019699,2]
[363197281,1748619190847,-500.0,0.00019699,2]
[363197282,1748619190870,-731.40242994,0.000197,2]
[363197283,1748619190929,-2186.128,0.000197,2]
[363197284,1748619190968,-2186.128,0.000197,2]
[363197285,1748619191092,-2186.128,0.000197,2]
[363197286,1748619191134,-2186.128,0.000197,2]
[363197287,1748619191166,-128.88134832,0.000197,2]
[363197288,1748619191189,-2057.24665168,0.00019733,2]
[363197289,1748619191225,-2186.128,0.00019733,2]
[363197290,1748619191277,-2186.128,0.00019733,2]
[363197291,1748619230311,-3175.29312658,0.00019733,2]
[363197292,1748619230338,-168.02,0.00019762,2]
[363197293,1748619230364,-9604.79577826,0.00019767,2]
[363197294,1748619230392,-9604.79577826,0.000198,2]
[363197295,1748619230418,-6447.0953169,0.00019833,2]
[363197298,1748619408238,254.7,0.00013699,2]
[363197299,1748619576359,23900.0,0.00019186,2]
[363197300,1748619956884,200.0,0.000194,2]
[363197301,1748620073403,967.6,0.00017268,2]
[363197310,1748620231653,-967.6,0.00019532,2]
[363197311,1748620231663,-250.0,0.0001978,2]
[363197312,1748620231673,-284.73922589,0.00019833,2]
[363197313,1748620231682,-1000.0,0.00019833,2]
[363197314,1748620231692,-250.0,0.00019842,2]
[363197315,1748620231701,-200.0,0.0001985,2]
[363197316,1748620231711,-151.0,0.0001988,2]
[363197317,1748620231721,-207.4,0.00019888,2]
[363197318,1748620231730,-200.0,0.00019892,2]
[363197319,1748620231740,-163.25,0.00019999,2]
[363197320,1748620231749,-805.0,0.0002,2]
[363197321,1748620231759,-254.7,0.00020187,2]
[363197322,1748620231768,-165.09,0.00020271,2]
[363197323,1748620231778,-154.63,0.00020273,2]
[363197324,1748620231788,-1000.0,0.00020314,2]
[363197325,1748620231797,-250.0,0.00020368,2]
[363197326,1748620231807,-1200.0,0.0002041,2]
[363197327,1748620231816,-1115.157653,0.00020411,2]
[363197328,1748620231826,-151.0,0.00020411,2]
[363197329,1748620231835,-300.0,0.00020422,2]
[363197330,1748620231845,-6782.45008958,0.00020423,2]
[363197331,1748620231854,-312.12,0.0002054,2]
[363197332,1748620231863,-168.02,0.00020577,2]
[363197333,1748620231873,-613.0,0.00020617,2]
[363197334,1748620231883,-150.99,0.00020951,2]
[363197335,1748620231893,-150.99,0.00020951,2]
[363197336,1748620231903,-212.37,0.00020951,2]
[363197338,1748620231914,-805.84,0.00020986,2]
[363197340,1748620231923,-215.0738,0.00021257,2]
[363197341,1748620231932,-163.25,0.00021369,2]
[363197343,1748620231942,-168.02,0.00021392,2]
[363197345,1748620231951,-250.0,0.00021485,2]
[363197347,1748620231960,-8054.163657,0.0002158,2]
[363197349,1748620231970,-325.19181603,0.00021613,2]
[363197351,1748620231979,-1000.0,0.00021614,7]
[363197353,1748620231989,-1000.0,0.00021614,7]
[363197355,1748620231998,-1000.0,0.00021614,7]
[363197357,1748620232009,-1000.0,0.00021614,7]
[363197360,1748620232019,-1000.0,0.00021614,7]
[363197364,1748620232028,-1000.0,0.00021614,7]
[363197366,1748620232038,-1000.0,0.00021614,7]
[363197369,1748620232047,-1000.0,0.00021614,7]
[363197372,1748620232058,-1000.0,0.00021614,7]
[363197375,1748620232067,-1000.0,0.00021614,7]
[363197377,1748620232078,-1000.0,0.00021614,2]
[363197378,1748620232087,-1000.0,0.00021614,2]
[363197380,1748620232096,-1000.0,0.00021614,2]
[363197383,1748620232106,-1000.0,0.00021614,2]
[363197384,1748620232115,-1000.0,0.00021614,2]
[363197387,1748620232125,-1000.0,0.00021614,2]
[363197389,1748620232134,-1000.0,0.00021614,2]
[363197391,1748620232144,-1000.0,0.00021614,2]
[363197393,1748620232154,-832.48461369,0.00021614,2]
[363197395,1748620232166,-167.51538631,0.00021614,2]
[363197397,1748620232176,-1000.0,0.00021614,2]
[363197399,1748620232185,-173.07386369,0.00021644,2]
[363197401,1748620232200,-866.02613631,0.00021644,2]
[363197403,1748620232210,-805.84,0.00021773,2]
[363197405,1748620232219,-156.587,0.0002178,2]
[363197407,1748620232229,-967.6,0.00021796,2]
[363197409,1748620232239,-250.0,0.00021816,2]
[363197411,1748620232248,-200.0,0.00021817,2]
[363197413,1748620232258,-200.0,0.00021817,2]
[363197415,1748620232269,-2709.9503,0.00021817,2]
[363197417,1748620232279,-1000.0,0.00021817,2]
[363197419,1748620232288,-2500.0,0.00021817,2]
[363197421,1748620232297,-184.22471922,0.00021817,2]
[363197423,1748620232307,-817.22231278,0.00021817,2]
[363197426,1748620232329,-1107.64615845,0.00021817,2]
[363197428,1748620232341,-1738.93390384,0.00021817,2]
[363197429,1748620232351,-200.0,0.00021835,2]
[363197430,1748620232360,-4426.30162079,0.000219,2]
[363197431,1748620232372,-4350.30842278,0.000219,2]
[363197432,1748620232382,-157.92157722,0.000219,2]
[363197433,1748620232393,-2.12257704,0.000219,2]
[363197434,1748620232403,-278.93491413,0.000219,6]
[363197435,1748620232412,-47.54798561,0.00021907,2]
[363197448,1748620238180,-266.94302427,0.00020423,2]
[363197449,1748620238191,-1931.04201439,0.00021907,2]
[363197450,1748620238203,-213.55441942,0.00021907,2]
[363197451,1748620238213,-500.0,0.00021916,2]
[363197452,1748620238223,-418.54264275,0.00021916,2]
[363197453,1748620238232,-499.64977375,0.00021916,2]
[363197454,1748620238242,-500.0,0.00021916,2]
[363197455,1748620238252,-500.0,0.00021916,2]
[363197456,1748620238262,-500.0,0.00021916,2]
[363197457,1748620238273,-500.0,0.00021916,2]
[363197458,1748620238284,-500.0,0.00021916,2]
[363197459,1748620238294,-178.75460944,0.00021916,2]
[363197460,1748620238305,-376.53997394,0.00021916,2]
[363197461,1748620238316,-291.97195236,0.00021916,2]
[363197462,1748620238326,-629.73957259,0.00021916,2]
[363197463,1748620238335,-629.73957259,0.00021916,2]
[363197464,1748620238345,-629.73957259,0.00021916,2]
[363197465,1748620238354,-629.73957259,0.00021916,2]
[363197466,1748620238364,-629.73957259,0.00021916,2]
[363197467,1748620238374,-629.73957259,0.00021916,2]
[363197468,1748620238383,-629.73957259,0.00021916,2]
[363197469,1748620238393,-629.73957259,0.00021916,2]
[363197470,1748620238403,-629.73957259,0.00021916,2]
[363197471,1748620238412,-629.73957259,0.00021916,2]
[363197472,1748620238422,-629.73957259,0.00021916,2]
[363197473,1748620238431,-629.73957259,0.00021916,2]
[363197474,1748620238441,-629.73957259,0.00021916,2]
[363197475,1748620238450,-629.73957259,0.00021916,2]
[363197476,1748620238460,-629.73957259,0.00021916,2]
[363197478,1748620238470,-629.73957259,0.00021916,2]
[363197479,1748620238479,-629.73957259,0.00021916,2]
[363197481,1748620238489,-629.73957259,0.00021916,2]
[363197483,1748620238498,-629.73957259,0.00021916,2]
[363197485,1748620238508,-629.73957259,0.00021916,2]
[363197487,1748620238518,-629.73957259,0.00021916,2]
[363197489,1748620238528,-629.73957259,0.00021916,2]
[363197491,1748620238537,-164.82336449,0.00021916,2]
[363197493,1748620238549,-464.9162081,0.00021916,2]
[363197494,1748620238559,-629.73957259,0.00021916,2]
[363197495,1748620238568,-629.73957259,0.00021916,2]
[363197496,1748620238578,-464.93622949,0.00021916,2]
[363197497,1748620238650,-164.8033431,0.00021916,2]
[363197498,1748620238660,-629.73957259,0.00021916,2]
[363197499,1748620238671,-629.73957259,0.00021916,2]
[363197500,1748620238680,-629.73957259,0.00021916,2]
[363197501,1748620238691,-629.73957259,0.00021916,2]
[363197502,1748620238701,-629.73957259,0.00021916,2]
[363197503,1748620238711,-629.73957259,0.00021916,2]
[363197504,1748620238721,-629.73957259,0.00021916,2]
[363197505,1748620238730,-629.73957259,0.00021916,2]
[363197506,1748620238740,-629.73957259,0.00021916,2]
[363197507,1748620238750,-629.73957259,0.00021916,2]
[363197508,1748620238760,-629.73957259,0.00021916,2]
[363197509,1748620238769,-629.73957259,0.00021916,2]
[363197510,1748620238779,-629.73957259,0.00021916,2]
[363197511,1748620238789,-629.73957259,0.00021916,2]
[363197512,1748620238798,-629.73957259,0.00021916,2]
[363197513,1748620238808,-629.73957259,0.00021916,2]
[363197514,1748620238818,-629.73957259,0.00021916,2]
[363197515,1748620238828,-167.6037171,0.00021916,2]
[363197516,1748620238840,-462.13585549,0.00021916,2]
[363197517,1748620238850,-67.02011958,0.00021916,2]
[363197529,1748620240047,-4567.31468658,0.00021817,2]
[363197530,1748620240058,-562.71945301,0.00021916,2]
[363197531,1748620240069,-629.73957259,0.00021916,2]
[363197532,1748620240080,-629.73957259,0.00021916,2]
[363197533,1748620240091,-629.73957259,0.00021916,2]
[363197534,1748620240100,-629.73957259,0.00021916,2]
[363197535,1748620240111,-629.73957259,0.00021916,2]
[363197536,1748620240120,-629.73957259,0.00021916,2]
[363197537,1748620240130,-629.73957259,0.00021916,2]
[363197538,1748620240139,-629.73957259,0.00021916,2]
[363197539,1748620240149,-629.73957259,0.00021916,2]
[363197540,1748620240159,-629.73957259,0.00021916,2]
[363197541,1748620240168,-629.73957259,0.00021916,2]
[363197542,1748620240178,-629.73957259,0.00021916,2]
[363197543,1748620240188,-629.73957259,0.00021916,2]
[363197544,1748620240203,-629.73957259,0.00021916,2]
[363197545,1748620240213,-629.73957259,0.00021916,2]
[363197546,1748620240223,-495.69287178,0.00021916,2]
[363197547,1748620240232,-500.0,0.00021916,2]
[363197548,1748620240242,-500.0,0.00021916,2]
[363197549,1748620240252,-500.0,0.00021916,2]
[363197550,1748620240261,-607.4356958,0.00021916,2]
[363197551,1748620240272,-607.4356958,0.00021916,2]
[363197552,1748620240282,-607.4356958,0.00021916,2]
[363197553,1748620240292,-607.4356958,0.00021916,2]
[363197554,1748620240301,-607.4356958,0.00021916,2]
[363197555,1748620240311,-607.4356958,0.00021916,2]
[363197556,1748620240321,-607.4356958,0.00021916,2]
[363197557,1748620240331,-607.4356958,0.00021916,2]
[363197558,1748620240341,-607.4356958,0.00021916,2]
[363197559,1748620240351,-607.4356958,0.00021916,2]
[363197560,1748620240361,-607.4356958,0.00021916,2]
[363197562,1748620240370,-607.4356958,0.00021916,2]
[363197563,1748620240380,-607.4356958,0.00021916,2]
[363197564,1748620240390,-607.4356958,0.00021916,2]
[363197565,1748620240399,-607.4356958,0.00021916,2]
[363197566,1748620240409,-151.0,0.00021916,2]
[363197567,1748620240419,-151.0,0.00021916,2]
[363197568,1748620240428,-152.1388,0.00021917,2]
[363197569,1748620240437,-151.0,0.00021917,2]
[363197570,1748620240447,-151.0,0.00021917,2]
[363197571,1748620240456,-420.0,0.00021917,2]
[363197572,1748620240470,-420.0,0.00021917,2]
[363197573,1748620240480,-420.0,0.00021917,2]
[363197574,1748620240490,-420.0,0.00021917,2]
[363197575,1748620240499,-1000.0,0.00021917,2]
[363197576,1748620240509,-420.0,0.00021917,2]
[363197577,1748620240519,-420.0,0.00021917,2]
[363197578,1748620240528,-420.0,0.00021917,2]
[363197579,1748620240538,-170.51417373,0.00021917,2]
[363197580,1748620240547,-420.0,0.00021917,2]
[363197581,1748620240556,-280.66627612,0.00021917,2]
[363197582,1748620240566,-420.0,0.00021917,2]
[363197583,1748620240576,-423.83649276,0.00021917,2]
[363197584,1748620240587,-636.21,0.00021917,2]
[363197585,1748620240596,-420.0,0.00021917,2]
[363197586,1748620240606,-420.0,0.00021917,2]
[363197587,1748620240616,-420.0,0.00021917,2]
[363197588,1748620240625,-420.0,0.00021917,2]
[363197589,1748620240635,-500.0,0.00021917,2]
[363197590,1748620240644,-420.0,0.00021917,2]
[363197591,1748620240654,-500.0,0.00021917,2]
[363197592,1748620240663,-420.0,0.00021917,2]
[363197593,1748620240674,-420.0,0.00021917,2]
[363197594,1748620240684,-420.0,0.00021917,2]
[363197595,1748620240694,-500.0,0.00021917,2]
[363197596,1748620240703,-420.0,0.00021917,2]
[363197597,1748620240713,-420.0,0.00021917,2]
[363197598,1748620240727,-420.0,0.00021917,2]
[363197599,1748620240737,-423.93726375,0.00021917,2]
[363197600,1748620240747,-420.0,0.00021917,2]
[363197601,1748620240757,-506.84121239,0.00021917,2]
[363197602,1748620240767,-500.0,0.00021917,2]
[363197603,1748620240775,-420.0,0.00021917,2]
[363197604,1748620240786,-420.0,0.00021917,2]
[363197605,1748620240796,-275.77848789,0.00021917,2]
[363197606,1748620240805,-420.0,0.00021917,2]
[363197607,1748620240815,-420.0,0.00021917,2]
[363197608,1748620240824,-420.0,0.00021917,2]
[363197609,1748620240834,-454.0,0.00021917,2]
[363197610,1748620240843,-420.0,0.00021917,2]
[363197611,1748620240854,-420.0,0.00021917,2]
[363197612,1748620240863,-500.0,0.00021917,2]
[363197613,1748620240873,-495.47,0.00021917,2]
[363197614,1748620240882,-506.81313467,0.00021917,2]
[363197615,1748620240891,-420.0,0.00021917,2]
[363197616,1748620240901,-420.0,0.00021917,2]
[363197617,1748620240910,-420.0,0.00021917,2]
[363197618,1748620240920,-493.86601578,0.00021917,2]
[363197619,1748620240929,-420.0,0.00021917,2]
[363197620,1748620240939,-420.0,0.00021917,2]
[363197621,1748620240948,-420.0,0.00021917,2]
[363197622,1748620240957,-496.90956194,0.00021917,2]
[363197623,1748620240969,-420.0,0.00021917,2]